[Event "FTX Crypto Cup MCCT 2022"]
[Site "Miami"]
[Date "2022.08.11"]
[Round "5.2"]
[White "Firouzja, Alireza"]
[Black "Niemann, Hans Moke"]
[Result "1-0"]
[ECO "C65"]
[WhiteElo "2793"]
[BlackElo "2688"]
[Annotator "TA"]
[PlyCount "61"]
[EventDate "2022.08.10"]
[EventType "tourn"]
[EventCountry "USA"]
[SourceTitle "playchess.com"]
[Source "ChessBase"]
[SourceQuality "1"]
[TimeControl "900+10"]

{[%evp 9,61,18,21,11,19,15,27,0,8,10,19,19,32,7,20,-4,7,0,28,30,39,41,44,39,47,16,54,48,79,83,165,145,148,147,157,160,202,167,187,171,321,280,337,335,649,672,961,960,29980,29981,29981,29982,29979,6433]} 1. e4 {[%emt 0:00:00]} e5 {[%emt 0:00:00]} 2. Nf3 {[%emt 0:00:02]} Nc6 {[%emt 0:00:02]} 3. Bb5 {[%emt 0:00:01]} Nf6 {[%emt 0:00:17]} 4. d3 {[%emt 0:00:02]} Bc5 {[%emt 0:00:05]} 5. Bxc6 {[%emt 0:00:02]} dxc6 {[%emt 0:00:02]} 6. Nbd2 {[%emt 0:00:01] C65: Ruy Lopez: Berlin Defence (3...Nf6), unusual lines and 4 0-0 Bc5.} Be6 {[%emt 0:00:15]} 7. O-O {[%emt 0:00:02]} Qd6 {[%emt 0:00:27] [#] 7...Bd6 is setting a new trend.} 8. Kh1 $146 {[%emt 0:00:04] White has an edge.} ({Predecessor:} 8. Nb3 Bb6 9. Bd2 a5 10. Qe1 a4 11. Na5 Ra7 12. Nc4 Bxc4 13. dxc4 O-O 14. Bc3 {½-½ (88) Wei,Y (2727)-Niemann,H (2688) chess24.com INT 2022}) 8... h6 {[%emt 0:01:32]} 9. a3 {[%emt 0:01:14]} a5 {[%emt 0:00:17] Against b4} 10. b3 {[%emt 0:00:02][%cal Bb2b3,Bb3b4][%mdl 32]} O-O {[%emt 0:00:53]} 11. Bb2 {[%emt 0:00:05] And now d4 would win.} Nd7 $1 {[%emt 0:00:01]} 12. Qe2 {[%emt 0:00:09]} Rfe8 {[%emt 0:00:15]} 13. Rfd1 {[%emt 0:00:16]} a4 {[%emt 0:00:28]} 14. b4 $36 {[%emt 0:00:19][%mdl 2048] White is more active.} Ba7 {[%emt 0:00:04]} 15. Nc4 {[%emt 0:00:58]} Bxc4 {[%emt 0:00:03]} 16. dxc4 {[%emt 0:00:01]} Qe6 {[%emt 0:00:13]} 17. Rd2 {[%emt 0:00:46]} f6 {[%emt 0:01:04] Threatens to win with ...Nb6.} 18. c5 {[%emt 0:00:09] Prevents Nb6.} b6 {[%emt 0:00:46]} 19. Rad1 {[%emt 0:00:06] White is more active.} Nf8 {[%emt 0:00:11]} (19... Re7 $16) 20. cxb6 $18 {[%emt 0:00:17]} Bxb6 {[%emt 0:00:03]} 21. Nh4 {[%emt 0:02:58][%cal Bf3h4,Bh4f5,Bf5h6][%mdl 32] Against Ng6} c5 {[%emt 0:02:26] [#]} 22. b5 {[%emt 0:00:03]} Kh7 {[%emt 0:02:26]} 23. Nf5 {[%emt 0:00:25]} Qf7 {[%emt 0:00:06] [#]} 24. Bc1 $1 {[%emt 0:00:47]} h5 {[%emt 0:00:43]} (24... c4 $142 25. Rd5 c3) 25. Rd5 {[%emt 0:02:15]} g6 {[%emt 0:00:09]} 26. Nh6 {[%emt 0:00:48]} Qg7 {[%emt 0:01:18]} (26... Qe6 27. c4 Kh8) 27. g4 {[%emt 0:00:02]} Ne6 {[%emt 0:00:08]} 28. gxh5 {[%emt 0:02:22]} ({Weaker is} 28. Rd7 Re7 29. Rxe7 Qxe7 $18) 28... Nd4 {[%emt 0:00:03]} 29. hxg6+ {[%emt 0:00:47] White mates.} Qxg6 {[%emt 0:00:03]} 30. Rd7+ {[%emt 0:00:05]} Kh8 {[%emt 0:00:45]} 31. Qe3 {[%emt 0:00:07] Weighted Error Value: White=0.06 (flawless) /Black=0.69} 1-0

[Event "FTX Crypto Cup MCCT 2022"]
[Site "Miami"]
[Date "2022.08.11"]
[Round "5.2"]
[White "Giri, Anish"]
[Black "Aronian, Levon"]
[Result "1-0"]
[ECO "C50"]
[WhiteElo "2760"]
[BlackElo "2775"]
[Annotator "TA"]
[PlyCount "129"]
[EventDate "2022.08.10"]
[EventType "tourn"]
[EventCountry "USA"]
[SourceTitle "playchess.com"]
[Source "ChessBase"]
[SourceQuality "1"]
[TimeControl "900+10"]

{[%evp 9,129,13,41,37,37,32,37,36,41,41,46,28,18,16,29,31,41,30,27,31,33,13,68,68,57,73,107,62,75,31,34,37,80,52,53,45,121,129,114,121,150,136,154,131,154,168,177,186,213,213,205,209,204,66,79,70,59,39,60,14,25,0,0,0,0,0,0,0,39,-6,0,0,0,-5,-6,-7,-15,-19,-18,-20,0,0,371,381,379,367,368,352,326,291,357,357,391,384,607,490,597,603,604,568,1816,1480,3225,2666,4998,4886,6079,5409,29971,29973,29987,29988,29988,29989,29990,29991,29991,29976,29976,29977,29977,29978]} 1. e4 {[%emt 0:00:00]} e5 {[%emt 0:00:00]} 2. Nf3 {[%emt 0:00:02]} Nc6 {[%emt 0:00:01]} 3. Bc4 {[%emt 0:00:02]} Bc5 {[%emt 0:00:02]} 4. O-O {[%emt 0:00:07]} d6 {[%emt 0:00:26]} 5. c3 {[%emt 0:00:31]} Qf6 {[%emt 0:00:02]} 6. b4 {[%emt 0:01:36] C50: Hungarian Defence and Giuoco Pianissimo.} Bb6 {[%emt 0:00:02]} 7. a4 {[%emt 0:00:01]} a6 {[%emt 0:00:02]} 8. d3 {[%emt 0:00:32][%cal Bd2d3,Bd3d4][%mdl 32] White is slightly better.} Nge7 {[%emt 0:00:02]} 9. Be3 {[%emt 0:00:25]} O-O {[%emt 0:01:22]} 10. Nbd2 {[%emt 0:00:23]} Bxe3 {[%emt 0:02:08]} 11. fxe3 {[%emt 0:00:01]} Qh6 {[%emt 0:00:01]} 12. Qe2 {[%emt 0:00:11] [#]} Kh8 $146 {[%emt 0:00:11]} ({Predecessor:} 12... Be6 13. b5 Nb8 14. d4 axb5 15. Bxe6 Qxe6 16. axb5 Rxa1 17. Rxa1 exd4 18. exd4 Nd7 19. Ra7 Rb8 20. Ng5 Qg6 21. Nh3 Nc8 22. Ra1 {½-½ (22) Libiszewski,F (2481)-Rogic,D (2513) Baden 2018}) 13. d4 {[%emt 0:00:22]} Ng6 {[%emt 0:00:30]} 14. b5 {[%emt 0:00:28]} Na5 {[%emt 0:00:58]} 15. Ba2 {[%emt 0:01:00][%cal Bc4a2,Ba2b1,Bb1e4][%mdl 32]} f5 {[%emt 0:01:33]} (15... f6 $11) 16. exf5 {[%emt 0:01:58]} Bxf5 {[%emt 0:00:04] And now ...e4 would win.} 17. dxe5 {[%emt 0:00:39]} dxe5 {[%emt 0:00:07]} 18. Bb1 {[%emt 0:00:11]} Qh5 {[%emt 0:03:20]} 19. Be4 {[%emt 0:01:12]} Nh4 {[%emt 0:00:27]} 20. bxa6 {[%emt 0:01:36]} Rxa6 {[%emt 0:00:20]} 21. Bxf5 {[%emt 0:04:56]} Nxf5 {[%emt 0:00:09]} 22. e4 {[%emt 0:00:39]} Ne7 {[%emt 0:00:18]} ({Black should play} 22... Nh6 $1 $14) 23. Qb5 $16 {[%emt 0:00:29]} Nac6 {[%emt 0:01:43]} 24. Qxb7 {[%emt 0:00:13]} Ra7 {[%emt 0:00:04]} 25. Qb5 {[%emt 0:00:06][%cal Of3e5] Hoping for Nxe5!} Rb8 {[%emt 0:00:18]} 26. Qc5 {[%emt 0:00:32]} Ra5 {[%emt 0:00:09]} 27. Qc4 {[%emt 0:00:06]} h6 {[%emt 0:00:14]} 28. Nb3 {[%emt 0:00:12]} Raa8 {[%emt 0:00:12]} 29. a5 $1 {[%emt 0:00:04][%cal Ba4a5,Ba5a6][%mdl 32] Against Rb6} Qe8 {[%emt 0:00:10]} 30. a6 {[%emt 0:00:07]} Qg8 {[%emt 0:00:04]} 31. Nbd2 {[%emt 0:00:52]} ({Only move:} 31. Qxg8+ $18 Kxg8 32. Nc5) 31... Rb6 $1 $14 {[%emt 0:00:02]} 32. Rfd1 {[%emt 0:00:25] White is more active.} Qc8 {[%emt 0:00:36][%cal Rb6a6]} 33. a7 {[%emt 0:00:13]} Qb7 {[%emt 0:00:04]} 34. Qe6 {[%emt 0:00:10]} (34. g4 $14 {is more appropriate.}) 34... Rxa7 {[%emt 0:00:31]} 35. Nxe5 {[%emt 0:00:01]} Nxe5 {[%emt 0:00:05]} 36. Qxe5 {[%emt 0:00:07]} Ng6 {[%emt 0:00:02]} 37. Qc5 {[%emt 0:00:32]} Rxa1 {[%emt 0:01:14]} 38. Rxa1 {[%emt 0:00:00]} Rb2 {[%emt 0:00:03]} 39. Qe3 {[%emt 0:00:19]} (39. Ra7 $5 {[%cal Ra7b7]} Qc8 40. Qa3 $1 $16 (40. Nc4 $2 Rb1+ 41. Kf2 Qg4 $19)) 39... Qb5 {[%emt 0:00:57]} 40. Re1 {[%emt 0:00:06]} Rc2 {[%emt 0:00:30]} 41. Nf3 {[%emt 0:00:13]} Qb2 {[%emt 0:00:05][%csl LRc3,LRg2]} 42. g3 {[%emt 0:00:09]} Rxc3 {[%emt 0:00:21]} 43. Qf2 {[%emt 0:00:04]} Rc2 {[%emt 0:00:11]} 44. Qe3 {[%emt 0:00:01]} Ne5 {[%emt 0:00:47]} 45. Nxe5 {[%emt 0:00:01]} Rg2+ $2 {[%emt 0:00:04][%mdl 8192] White leaves nothing to chance now.} (45... Qxe5 $11 46. Rf1 Rc4) 46. Kf1 $18 {[%emt 0:00:02]} Rxh2 {[%emt 0:00:00][%csl Gh2][%cal Rb2g2] [#]} 47. Ng6+ $1 {[%emt 0:00:27]} Kh7 {[%emt 0:00:05][%csl Gh2][%cal Rb2g2] [#]} 48. Qf3 {[%emt 0:00:02] Prevents Qg2+.} Qb5+ {[%emt 0:01:56]} 49. Kg1 {[%emt 0:00:01]} Rb2 {[%emt 0:00:01]} 50. Nf4 {[%emt 0:00:31] Threatens to win with e5.} ({Don't do} 50. Nh4 Qb6+ 51. Kh1 Rf2 $18) 50... Qc5+ {[%emt 0:00:01]} 51. Qe3 {[%emt 0:00:09]} Qc2 {[%emt 0:00:01]} (51... Qxe3+ $142 52. Rxe3 c6) 52. Re2 {[%emt 0:00:22]} Qd1+ {[%emt 0:00:01]} 53. Kh2 {[%emt 0:00:07]} Rb1 {[%emt 0:00:28][%csl Gb1][%cal Rd1h1]} 54. Qf3 {[%emt 0:00:02] Prevents Qh1+.} Rb3 {[%emt 0:00:10]} 55. Qf2 {[%emt 0:00:13] Strongly threatening e5.} Rb1 {[%emt 0:00:11]} 56. Qg2 {[%emt 0:00:01] aiming for e5.} g5 {[%emt 0:00:31]} 57. Nd5 {[%emt 0:00:02]} Qd4 {[%emt 0:00:17]} 58. e5 {[%emt 0:00:07] e6 is the strong threat.} Kg7 {[%emt 0:00:06]} 59. Nxc7 {[%emt 0:00:33] White mates.} Qg4 {[%emt 0:00:03]} 60. Ne8+ {[%emt 0:00:02]} Kf8 {[%emt 0:00:08]} 61. Nf6 {[%emt 0:00:02]} Qe6 {[%emt 0:00:06]} 62. Qa8+ {[%emt 0:00:15]} Kg7 {[%emt 0:00:01]} 63. Qa7+ {[%emt 0:00:02]} Qf7 {[%emt 0:00:01]} 64. Qxf7+ {[%emt 0:00:04]} Kxf7 {[%emt 0:00:06]} 65. e6+ {[%emt 0:00:05] Weighted Error Value: White=0.10 (very precise) /Black=0.33} 1-0

[Event "FTX Crypto Cup MCCT 2022"]
[Site "Miami"]
[Date "2022.08.11"]
[Round "5.2"]
[White "Praggnanandhaa R"]
[Black "Le, Quang Liem"]
[Result "0-1"]
[ECO "D24"]
[WhiteElo "2648"]
[BlackElo "2722"]
[Annotator "TA"]
[PlyCount "100"]
[EventDate "2022.08.10"]
[EventType "tourn"]
[EventCountry "USA"]
[SourceTitle "playchess.com"]
[Source "ChessBase"]
[SourceQuality "1"]
[TimeControl "900+10"]

{[%evp 9,100,8,3,0,0,-2,0,0,-10,0,0,0,0,0,0,0,0,0,0,0,0,-7,-11,-14,-10,-8,-7,-8,-5,-8,-5,-16,13,13,16,22,18,-12,9,10,11,7,1,0,0,0,0,0,0,0,0,-61,-73,-73,-68,-67,0,0,0,0,0,0,0,-135,-141,-264,-241,-335,-335,-400,-394,-344,-310,-417,-414,-450,-443,-438,-386,-430,-418,-594,-587,-579,-554,-668,-668,-4710,-4702,-29983,-29984,-29980,-29980]} 1. d4 {[%emt 0:00:00]} Nf6 {[%emt 0:00:00]} 2. c4 {[%emt 0:00:02]} e6 {[%emt 0:00:02]} 3. Nf3 {[%emt 0:00:03]} d5 {[%emt 0:00:01]} 4. Nc3 {[%emt 0:00:01]} dxc4 {[%emt 0:00:03]} 5. e4 {[%emt 0:00:02]} Bb4 {[%emt 0:00:02]} 6. Bxc4 {[%emt 0:00:02] D24: Queen's Gambit Accepted: 3 Nf3 Nf6 4 Nc3.} Nxe4 {[%emt 0:00:01]} 7. O-O {[%emt 0:00:02]} Nxc3 {[%emt 0:00:07]} 8. bxc3 {[%emt 0:00:01] The position is equal.} (8. Qb3 Nd5 9. Bxd5 Qxd5 $17) 8... Be7 {[%emt 0:00:05]} 9. Qc2 {[%emt 0:00:04]} O-O {[%emt 0:00:09]} 10. Re1 {[%emt 0:00:03]} Nd7 {[%emt 0:00:17][%cal Bb8d7,Bd7f6,Bf6d5][%mdl 32]} 11. Bd3 {[%emt 0:00:04]} h6 {[%emt 0:01:57]} 12. Qe2 {[%emt 0:00:11] [#]} c5 $146 {[%emt 0:01:04]} ({Predecessor:} 12... Bd6 13. Bc2 Re8 14. Ne5 Nf8 15. Bf4 f6 16. Rad1 Qe7 17. Rd3 Bxe5 18. dxe5 f5 {0-1 (32) Huschenbeth,N (2594)-Lysyj,I (2635) Skopje 2019}) 13. Qe4 {[%emt 0:00:32][%csl Gd3][%cal Re4h7] [#]} Nf6 {[%emt 0:00:11] Against Qh7+} 14. Qh4 {[%emt 0:00:03][%cal Oc1h6] Hoping for Bxh6!} Nd5 {[%emt 0:03:39]} 15. Qg3 {[%emt 0:00:09]} ({But not} 15. Qe4 f5 16. Qe5 Bd6 $17) 15... Bd6 {[%emt 0:00:52]} 16. Ne5 {[%emt 0:00:14]} Qf6 {[%emt 0:00:08]} 17. dxc5 {[%emt 0:03:17]} Bxe5 {[%emt 0:00:12]} 18. Rxe5 {[%emt 0:00:12]} Rd8 {[%emt 0:00:06]} 19. Bd2 {[%emt 0:02:52]} Ne7 {[%emt 0:00:17]} 20. Rae1 {[%emt 0:01:06]} Bd7 {[%emt 0:01:09][%cal Od7b5]} (20... Nf5 $5 {[%cal Rf5g3]} 21. Qf3 Rb8 $11) 21. c4 {[%emt 0:01:29] Against Bb5} Nf5 {[%emt 0:02:41]} 22. Bxf5 {[%emt 0:02:46]} exf5 {[%emt 0:00:00]} 23. f4 {[%emt 0:00:08] [#] Bc3 is the strong threat.} (23. h4 {seems wilder.} Kh7 24. Re7 Bc6 25. Bc3) 23... Kh7 {[%emt 0:01:29]} (23... h5 {with more complications.} 24. Bc3 Qh6 25. c6 Bxc6 26. Rxf5 h4) 24. Bc3 {[%emt 0:00:16] Threatens to win with R5e3.} Qg6 {[%emt 0:00:13]} 25. Qxg6+ {[%emt 0:01:08]} Kxg6 {[%emt 0:00:00]} 26. Re7 {[%emt 0:01:37]} Be6 {[%emt 0:03:15]} 27. Re3 {[%emt 0:00:54]} Rd1+ {[%emt 0:00:28]} 28. Kf2 {[%emt 0:00:02]} Bxc4 {[%emt 0:00:01]} 29. Rg3+ {[%emt 0:00:50]} Kh5 {[%emt 0:00:01] White must now prevent ...Rf1+.} 30. Rxg7 {[%emt 0:00:49]} (30. Rh3+ $1 $11 Kg4 31. c6) 30... Rf1+ $1 $15 {[%emt 0:00:35]} 31. Kg3 {[%emt 0:00:09] And now Re5 would win.} Rd8 {[%emt 0:00:00]} 32. Re3 {[%emt 0:00:16]} Rfd1 {[%emt 0:00:25]} ({Better is} 32... Bxa2 $15 33. Rh7 a5) 33. Kf2 $11 {[%emt 0:00:58][%cal Re3h3]} R8d3 $36 {[%emt 0:00:27][%mdl 2048] Black has some pressure.} 34. Re5 {[%emt 0:00:12]} Rd5 $1 {[%emt 0:00:28]} (34... Rxc3 {is a self mate.} 35. Rxf5+ Kh4 36. g3+) 35. g4+ {[%emt 0:00:08]} Kh4 {[%emt 0:00:01] Strongly threatening ...Rxe5.} 36. Re3 {[%emt 0:00:12]} ({Much worse is} 36. gxf5 Rf1+ 37. Kg2 Rxf4 $17) (36. Rxd5 $11 {keeps the balance.} Rxd5 37. g5 hxg5 38. Rxg5) 36... fxg4 $17 {[%emt 0:00:23]} 37. Bf6+ {[%emt 0:00:05]} (37. Be1 $17) 37... Kh5 $19 {[%emt 0:00:01] ( -> ...R5d2+)} 38. Re5+ {[%emt 0:00:17]} Rxe5 {[%emt 0:00:01]} 39. fxe5 {[%emt 0:00:07]} Bxa2 {[%emt 0:00:11][%mdl 4096] Endgame KRB-KRB} 40. Rg8 {[%emt 0:00:08]} Rc1 {[%emt 0:00:15]} 41. Be7 {[%emt 0:00:10]} Rc2+ {[%emt 0:00:08]} 42. Kg3 {[%emt 0:00:06]} Bd5 {[%emt 0:00:04]} 43. Rd8 {[%emt 0:00:15]} Rg2+ {[%emt 0:00:19]} 44. Kf4 {[%emt 0:00:02]} Be6 {[%emt 0:00:03]} 45. Rb8 {[%emt 0:00:20]} (45. Rh8 {might work better.} Rxh2 46. Rd8) 45... Rxh2 {[%emt 0:00:02]} 46. Rxb7 {[%emt 0:00:01]} Rf2+ {[%emt 0:00:01]} 47. Kg3 {[%emt 0:00:09]} Rf3+ {[%emt 0:00:07]} 48. Kh2 {[%emt 0:00:15]} g3+ {[%emt 0:00:32][%cal Bg4g3,Bg3g2][%mdl 32]} 49. Kg1 {[%emt 0:00:01]} Bh3 {[%emt 0:00:11][%csl Gh3][%cal Rf3f1]} 50. Rb1 {[%emt 0:00:08]} g2 {[%emt 0:00:05] Weighted Error Value: White=0.56/Black=0.03 (flawless)} 0-1

[Event "FTX Crypto Cup MCCT 2022"]
[Site "Miami"]
[Date "2022.08.11"]
[Round "5.3"]
[White "Aronian, Levon"]
[Black "Giri, Anish"]
[Result "0-1"]
[ECO "C65"]
[WhiteElo "2775"]
[BlackElo "2760"]
[Annotator "TA"]
[PlyCount "74"]
[EventDate "2022.08.10"]
[EventType "tourn"]
[EventCountry "USA"]
[SourceTitle "playchess.com"]
[Source "ChessBase"]
[SourceQuality "1"]
[TimeControl "900+10"]

{[%evp 9,74,24,37,13,12,1,4,6,15,3,17,-8,-2,0,0,-10,-8,-16,-8,-16,-15,-20,-18,-37,-31,-23,12,27,18,-53,-67,-59,-72,-60,-70,-60,-7,-27,-34,-2,0,-30,-8,-283,-274,-251,-253,-484,-463,-612,-593,-887,-887,-991,-992,-978,-944,-966,-753,-741,-712,-737,-725,-878,-871,-838,-791]} 1. e4 {[%emt 0:00:00]} e5 {[%emt 0:00:00]} 2. Nf3 {[%emt 0:00:05]} Nc6 {[%emt 0:00:02]} 3. Bb5 {[%emt 0:00:02]} Nf6 {[%emt 0:00:01]} 4. d3 {[%emt 0:00:08]} Bc5 {[%emt 0:00:01]} 5. Bxc6 {[%emt 0:00:10]} dxc6 {[%emt 0:00:01]} 6. Qe2 {[%emt 0:00:02] C65: Ruy Lopez: Berlin Defence (3...Nf6), unusual lines and 4 0-0 Bc5.} Nd7 {[%emt 0:01:18]} 7. Nc3 {[%emt 0:00:20] [#]} b6 $146 {[%emt 0:00:23]} ({Predecessor:} 7... O-O 8. O-O Re8 9. Bg5 f6 10. Be3 Bd6 11. d4 Qe7 12. Rfe1 Qf7 13. Rad1 a5 14. dxe5 Nxe5 15. Nxe5 Bxe5 {½-½ (21) Piorun,K (2634)-Salgado Lopez,I (2624) Germany 2019}) 8. Be3 {[%emt 0:00:21] The position is equal.} Bxe3 {[%emt 0:01:05]} 9. fxe3 {[%emt 0:00:00]} Qe7 {[%emt 0:00:16]} 10. O-O {[%emt 0:00:05]} Bb7 {[%emt 0:01:16]} 11. Qf2 {[%emt 0:00:18]} g6 {[%emt 0:00:15]} 12. Qg3 {[%emt 0:00:47]} O-O-O {[%emt 0:00:08]} 13. a3 {[%emt 0:00:03]} Kb8 {[%emt 0:01:21]} 14. b4 {[%emt 0:00:06]} Rdf8 {[%emt 0:00:11]} 15. d4 {[%emt 0:00:33]} f6 {[%emt 0:00:31][%cal Bf7f6,Bf6f5,Bf5f4][%mdl 32]} 16. Rab1 {[%emt 0:00:15]} Rhg8 {[%emt 0:00:07]} 17. a4 {[%emt 0:00:07]} exd4 {[%emt 0:00:29]} 18. exd4 {[%emt 0:00:03]} f5 {[%emt 0:00:01]} 19. Rfe1 {[%emt 0:01:20]} (19. e5 $11) 19... f4 $1 $15 {[%emt 0:00:02]} 20. Qg5 {[%emt 0:00:25]} Qg7 {[%emt 0:00:01]} 21. e5 {[%emt 0:00:19]} h6 {[%emt 0:00:20]} 22. Qg4 {[%emt 0:00:13]} g5 {[%emt 0:00:01]} (22... h5 $1 $15 23. Qe6 g5) 23. Ne4 {[%emt 0:00:25]} Bc8 {[%emt 0:00:59][%cal Od7e5] Threatens to win with ...Nxe5!} 24. Qh5 {[%emt 0:00:02]} g4 {[%emt 0:00:44]} 25. Nfd2 {[%emt 0:00:04]} f3 {[%emt 0:00:24]} 26. g3 $2 {[%emt 0:00:27][%mdl 8192] [#] This costs White the game.} (26. Rf1 $11) 26... Qh7 $1 $19 {[%emt 0:01:05]} 27. Qh4 {[%emt 0:00:02]} Rf5 {[%emt 0:03:04]} 28. e6 $2 {[%emt 0:01:07] [#]} (28. h3 gxh3 29. Kh2) 28... Nf8 $1 {[%emt 0:00:54] aiming for ...h5. Black is clearly winning.} 29. Nf2 {[%emt 0:00:47]} h5 {[%emt 0:01:55] White must now prevent ...Ng6.} 30. e7 {[%emt 0:00:47]} Ng6 {[%emt 0:00:03]} 31. e8=Q {[%emt 0:00:01]} Rxe8 {[%emt 0:00:01]} (31... Nxh4 $2 {too greedy.} 32. Qxc6 Bd7 33. Qc3 $19) 32. Rxe8 {[%emt 0:00:01]} Nxh4 {[%emt 0:00:00]} 33. gxh4 {[%emt 0:00:00]} Qd7 {[%emt 0:00:37]} 34. Re4 {[%emt 0:00:15]} Qd8 {[%emt 0:00:09]} 35. Nf1 {[%emt 0:00:10]} Rf8 {[%emt 0:00:17]} 36. Ng3 {[%emt 0:00:09]} Qxh4 {[%emt 0:00:01] ...Qd8 is the strong threat.} 37. Re5 {[%emt 0:00:06]} Qd8 {[%emt 0:00:28] Weighted Error Value: White=0.58/Black=0.11 (very precise)} 0-1

[Event "FTX Crypto Cup MCCT 2022"]
[Site "Miami"]
[Date "2022.08.11"]
[Round "5.3"]
[White "Duda, Jan-Krzysztof"]
[Black "Carlsen, Magnus"]
[Result "0-1"]
[ECO "A42"]
[WhiteElo "2750"]
[BlackElo "2864"]
[Annotator "TA"]
[PlyCount "72"]
[EventDate "2022.08.10"]
[EventType "tourn"]
[EventCountry "USA"]
[SourceTitle "playchess.com"]
[Source "ChessBase"]
[SourceQuality "1"]
[TimeControl "900+10"]

{[%evp 14,72,47,45,61,58,99,43,38,23,77,85,83,14,0,0,0,0,0,0,4,13,68,39,35,0,0,0,0,0,0,0,0,0,9,11,114,129,102,116,188,187,173,158,169,85,145,80,83,0,0,0,0,0,0,0,0,-357,-335,-277,-234]} 1. d4 {[%emt 0:00:00]} Nf6 {[%emt 0:00:00]} 2. c4 {[%emt 0:00:02]} g6 {[%emt 0:00:02]} 3. Nc3 {[%emt 0:00:13]} Bg7 {[%emt 0:00:02]} 4. e4 {[%emt 0:00:02]} d6 {[%emt 0:00:01]} 5. h3 {[%emt 0:00:12]} e5 {[%emt 0:00:14]} 6. dxe5 {[%emt 0:00:52]} dxe5 {[%emt 0:00:02]} 7. Qxd8+ {[%emt 0:00:00]} Kxd8 {[%emt 0:00:00]} 8. Be3 {[%emt 0:00:02]} c6 {[%emt 0:00:25] A42: Modern Defence: Averbakh Variation.} 9. Nf3 {[%emt 0:00:51][%cal Bg1f3,Bf3g5,Bg5f7,Bf7d6][%mdl 32]} Nfd7 {[%emt 0:01:10]} 10. O-O-O {[%emt 0:00:29] [#]} (10. Rd1 $16) 10... Ke7 $146 {[%emt 0:00:08] White is slightly better.} ({Predecessor:} 10... Ke8 11. h4 h5 12. g3 Nf8 13. Bh3 Bxh3 14. Rxh3 Nbd7 15. Rhh1 Bh6 16. Bxh6 Rxh6 17. Rd2 {½-½ (17) Stocek,J (2592)-Mrva,M (2494) Tatranske Zruby 2005}) 11. c5 {[%emt 0:00:13]} h5 {[%emt 0:00:30]} (11... b6 $11 {remains equal.}) 12. Bc4 $16 {[%emt 0:00:50]} Bh6 {[%emt 0:00:05]} 13. Bxh6 {[%emt 0:00:47]} (13. Rhf1 $16) 13... Rxh6 $11 {[%emt 0:00:03]} 14. Ng5 {[%emt 0:00:02]} f6 {[%emt 0:00:10]} 15. Nf7 {[%emt 0:00:03]} Rh7 {[%emt 0:00:01]} 16. Nd6 {[%emt 0:00:02]} Rh8 {[%emt 0:00:01]} 17. g4 {[%emt 0:01:40]} Nxc5 {[%emt 0:03:54]} (17... Na6 $11) 18. gxh5 $1 $14 {[%emt 0:00:18]} b5 {[%emt 0:00:06]} 19. b4 {[%emt 0:01:29] aiming for Bxb5.} ({Much weaker is} 19. hxg6 bxc4 20. Nxc4 Nba6 $17) 19... bxc4 {[%emt 0:04:18]} 20. Nxc8+ {[%emt 0:01:00]} Rxc8 {[%emt 0:00:06]} 21. bxc5 {[%emt 0:00:00]} g5 {[%emt 0:00:19]} 22. h4 $36 {[%emt 0:00:46][%mdl 2048] White has good play.} g4 {[%emt 0:00:38]} 23. Rhg1 {[%emt 0:00:04]} Na6 {[%emt 0:00:06]} 24. Rxg4 {[%emt 0:00:13]} Nxc5 {[%emt 0:00:12]} (24... Rg8 $11 {keeps the balance.} 25. Rxg8 Rxg8) 25. Rg7+ $16 {[%emt 0:00:28]} Ke6 {[%emt 0:00:02]} 26. h6 $1 {[%emt 0:00:01][%cal Bh5h6,Bh6h7][%mdl 32]} Rab8 {[%emt 0:00:37]} (26... Rh8 $16 {was necessary.}) 27. h7 $1 $18 {[%emt 0:00:38]} (27. Rxa7 Nd3+ 28. Kd2 Nxf2 $11) 27... Rh8 {[%emt 0:00:13]} ({Weaker is} 27... Nd3+ 28. Kd2 $16) 28. Rdg1 {[%emt 0:01:56]} ({Much worse is} 28. Rxa7 $6 Rb7 29. Rxb7 Nxb7 $11) 28... Nd3+ {[%emt 0:00:28]} 29. Kd1 {[%emt 0:02:19]} (29. Kd2 $1 $18) 29... Nxf2+ {[%emt 0:01:02]} (29... Rb2 $142) 30. Kc2 {[%emt 0:00:54]} (30. Kd2 $142) 30... Nd3 $16 {[%emt 0:00:12] [#]} 31. Na4 {[%emt 0:00:39] Against Rb2+} ({Better is} 31. Rb1 $1 $16 {[%cal Rb1b8] Black must now prevent Rxb8.} Nb4+ 32. Kd2) 31... Rb4 $11 {[%emt 0:00:17] Chess con chili.} 32. Rxa7 {[%emt 0:00:03] Threatens to win with Rgg7.} Rxh7 {[%emt 0:00:01]} 33. Rxh7 {[%emt 0:00:00] Hoping for Ra7.} Rxa4 {[%emt 0:00:01]} 34. h5 {[%emt 0:01:44]} Kd6 {[%emt 0:00:14]} 35. h6 $2 {[%emt 0:00:06][%mdl 8192]} (35. Ra1 $11 {and White is okay.} Ra3 36. Rb7) 35... Rxa2+ $19 {[%emt 0:00:12]} 36. Kc3 {[%emt 0:02:12] [#]} Kc5 $1 {[%emt 0:00:01] What a bad dream for White.  Weighted Error Value: White=0.38/Black=0.18 (very precise)} 0-1